bitfinex-derivatives/quotes_BTCF0:USTF0_20250318
["timestamp","ask_amount","ask_price","bid_price","bid_amount"]
[1742318300097,0.12257602,81719.0,81718.0,0.120394]
[1742318300292,0.00018352,81719.0,81718.0,0.120394]
[1742318300486,0.12257602,81719.0,81718.0,0.120394]
[1742318300907,0.00018352,81719.0,81718.0,0.120394]
[1742318301600,0.00018352,81719.0,81718.0,0.122394]
[1742318302104,0.00018352,81719.0,81718.0,0.120394]
[1742318302301,0.00018352,81719.0,81718.0,0.123394]
[1742318302494,0.12388,81744.0,81729.0,0.1223753]
[1742318302699,0.1223798,81730.0,81729.0,0.1223753]
[1742318302995,0.1223798,81730.0,81729.0,0.2462553]
[1742318303195,0.1223798,81730.0,81729.0,0.12388]
[1742318304201,0.0611906,81727.0,81723.0,1.24964]
[1742318304395,0.3608,81737.0,81723.0,0.88884]
[1742318304396,0.1223851,81724.0,81723.0,0.88884]
[1742318305304,0.1223851,81724.0,81723.0,1.0142266]
[1742318306091,0.1223851,81724.0,81723.0,1.0112266]
[1742318306298,0.1223851,81724.0,81723.0,1.0122266]
[1742318307706,0.1223851,81724.0,81723.0,1.0112266]
[1742318308004,0.1223851,81724.0,81723.0,1.0122266]
[1742318308502,0.1843851,81724.0,81723.0,1.0122266]
[1742318309787,0.1843851,81724.0,81723.0,0.88984]
[1742318309987,0.1843851,81724.0,81723.0,1.0122266]
[1742318310192,0.1843851,81724.0,81723.0,0.88984]
[1742318310405,0.1843851,81724.0,81723.0,0.001]
[1742318310600,0.1224075,81709.0,81707.0,0.061205]
[1742318310908,0.122409,81708.0,81707.0,0.061205]
[1742318311107,0.1224105,81707.0,81706.0,0.88888]
[1742318311403,0.1224105,81707.0,81706.0,1.011292]
[1742318311605,0.2455105,81707.0,81706.0,1.011292]
[1742318311800,0.1231,81707.0,81706.0,1.011292]
[1742318311993,0.0612027,81711.0,81706.0,1.011292]
[1742318311994,0.1224057,81711.0,81710.0,0.122406]
[1742318312599,0.122409,81708.0,81707.0,0.04817879]
[1742318312803,0.122409,81708.0,81707.0,0.1224105]
[1742318313002,0.122409,81708.0,81706.0,0.89807103]
[1742318313003,0.1224105,81707.0,81706.0,0.89807103]
[1742318313407,0.2454105,81707.0,81706.0,1.06971772]
[1742318313597,0.2454105,81707.0,81706.0,0.94730572]
[1742318314007,0.24531793,81707.0,81706.0,0.05942572]
[1742318314410,0.24531793,81707.0,81706.0,0.18183772]
[1742318314796,0.24531793,81707.0,81706.0,0.24363772]
[1742318314997,0.12231793,81707.0,81706.0,0.24363772]
[1742318315196,0.2462868,81710.0,81709.0,0.1224075]
[1742318315405,0.1224068,81710.0,81709.0,0.1224075]
[1742318315609,0.06138292,81715.0,81714.0,0.1224]
[1742318316499,0.1836038,81713.0,81712.0,0.1224017]
[1742318316901,0.0612008,81713.0,81712.0,0.1224017]
[1742318317093,0.18378272,81715.0,81714.0,0.1224]
[1742318317703,0.00018352,81715.0,81714.0,0.1224]
[1742318318415,0.12258202,81715.0,81714.0,0.1224]
[1742318318716,0.1224,81714.0,81713.0,0.0612007]
[1742318320107,0.00018352,81715.0,81714.0,0.1224]
[1742318320310,0.00018352,81715.0,81714.0,0.542]
[1742318320700,0.1223971,81719.0,81718.0,0.1835833]
[1742318321110,0.0611913,81726.0,81718.0,0.1835833]
[1742318321111,0.31460677,81730.0,81727.0,0.0611902]
[1742318321304,0.1223791,81728.0,81727.0,0.1835699]
[1742318321506,0.1223791,81728.0,81727.0,0.2435699]
[1742318321816,0.1224,81738.0,81727.0,0.2435699]
[1742318321817,0.02556925,81751.0,81727.0,0.21]
[1742318322107,0.11296432,81763.0,81762.0,0.1223282]
[1742318322308,0.17629589,81763.0,81762.0,0.6070082]
[1742318322904,0.05396919,81763.0,81762.0,0.6070082]
[1742318323101,0.39661563,81770.0,81769.0,0.1223177]
[1742318323710,0.51893183,81770.0,81769.0,0.1223177]
[1742318324418,0.1223177,81769.0,81768.0,0.1846184]
[1742318326207,0.12249962,81771.0,81768.0,0.1846184]
[1742318326208,0.00018352,81771.0,81770.0,0.1223162]
[1742318326413,0.3608,81785.0,81784.0,0.1222953]
[1742318326914,0.31392459,81785.0,81784.0,0.1831953]
[1742318327098,0.3608,81790.0,81784.0,0.1831953]
[1742318327099,0.1222909,81790.0,81789.0,0.183427]
[1742318327909,0.1222909,81790.0,81789.0,0.0611434]
[1742318329217,0.1222908,81787.0,81786.0,0.12384]
[1742318329408,0.1222908,81787.0,81786.0,0.2461323]
[1742318329608,0.1222908,81787.0,81786.0,0.1222923]
[1742318329803,0.1834466,81784.0,81783.0,0.1222958]
[1742318331198,0.1834466,81784.0,81781.0,0.9501326]
[1742318331199,0.1222983,81782.0,81781.0,0.8889834]
[1742318331812,0.1845983,81782.0,81781.0,0.8889834]
[1742318333107,0.1845983,81782.0,81781.0,1.0112832]
[1742318333412,0.1845983,81782.0,81781.0,0.8889834]
[1742318334011,0.1222983,81782.0,81781.0,1.0112832]
[1742318334714,0.1222931,81786.0,81783.0,0.061148]
[1742318334920,0.1834393,81786.0,81785.0,0.1222923]
[1742318335215,0.1834393,81786.0,81785.0,0.2460923]
[1742318335717,0.1834393,81786.0,81785.0,0.6673923]
[1742318336418,0.1834393,81786.0,81785.0,0.5451]
[1742318336615,0.1834393,81786.0,81785.0,0.1843]
[1742318337021,0.1834393,81786.0,81785.0,0.0605]
[1742318337322,0.1222983,81782.0,81781.0,0.8889834]
[1742318337815,0.2404983,81782.0,81781.0,0.0001834]
[1742318338024,0.1223147,81771.0,81770.0,0.0561]
[1742318338411,0.2352147,81771.0,81770.0,0.0561]
[1742318339810,0.1223267,81763.0,81762.0,0.06060373]
[1742318340311,0.2377267,81763.0,81762.0,0.06060373]
[1742318340704,0.1154,81763.0,81762.0,0.18293193]
[1742318340909,0.00987559,81785.0,81784.0,0.1222953]
[1742318341104,0.3608,81814.0,81784.0,0.1222953]
[1742318341105,0.0561,81809.0,81784.0,1.39928]
[1742318341309,0.0611626,81764.0,81762.0,0.06954576]
[1742318341509,0.3608,81737.0,81700.0,0.1]
[1742318341714,0.3608,81689.0,81647.0,0.01836]
[1742318342013,0.3608,81689.0,81617.0,0.88848]
[1742318342014,0.844075,81664.0,81663.0,0.06]
[1742318342214,0.1224945,81651.0,81650.0,0.11]
[1742318342415,0.5438493,81651.0,81650.0,0.10005303]
[1742318342622,0.122514,81638.0,81637.0,0.29152515]
[1742318342805,0.0612651,81628.0,81624.0,0.16]
[1742318343116,0.3608,81625.0,81622.0,0.122535]
[1742318343325,0.00010089,81624.0,81623.0,0.1838045]
[1742318343624,0.0612498,81648.0,81640.0,0.1225085]
[1742318343625,0.3608,81648.0,81640.0,0.1225085]
[1742318343803,0.0612548,81641.0,81633.0,0.3608]
[1742318344008,0.1225245,81631.0,81630.0,0.1645729]
[1742318344221,0.1225275,81629.0,81628.0,0.3608]
[1742318344440,0.3608,81639.0,81622.0,0.36098377]
[1742318344718,0.122526,81630.0,81629.0,0.1645729]
[1742318344919,0.13262689,81630.0,81629.0,0.128]
[1742318345115,0.0612654,81627.0,81622.0,0.41988377]
[1742318345317,0.122535,81624.0,81623.0,0.057]
[1742318345730,0.06136839,81624.0,81613.0,0.3608]
[1742318345913,0.2411365,81623.0,81622.0,0.003]
[1742318346307,0.1225695,81601.0,81600.0,0.105]
[1742318346509,0.12267039,81601.0,81600.0,0.105]
[1742318346724,0.122583,81592.0,81591.0,0.88904]
[1742318347021,0.122583,81592.0,81591.0,0.90904]
[1742318347225,0.0589,81612.0,81591.0,0.88904]
[1742318347428,0.122574,81598.0,81597.0,0.21827171]
[1742318347613,0.122574,81598.0,81597.0,0.12856]
[1742318348315,0.1225815,81593.0,81592.0,0.417]
[1742318348817,0.1225815,81593.0,81592.0,0.6041]
[1742318349022,0.0567,81607.0,81592.0,0.6041]
[1742318349212,0.05,81632.0,81620.0,0.3608]
[1742318349413,0.3608,81723.0,81620.0,0.3608]
[1742318349414,0.24896306,81671.0,81657.0,0.005]
[1742318349617,0.3608,81728.0,81683.0,0.005]
[1742318349829,0.1835845,81721.0,81720.0,0.21827171]
[1742318350036,0.122403,81712.0,81711.0,0.21827171]
[1742318350324,0.1224645,81671.0,81670.0,0.21827171]
[1742318350508,0.122472,81666.0,81665.0,0.005]
[1742318350708,0.02,81666.0,81665.0,0.3608]
[1742318350928,0.45932567,81666.0,81665.0,0.3608]
[1742318351126,0.122475,81664.0,81663.0,0.005]
[1742318351325,0.02,81664.0,81663.0,0.005]
[1742318351514,0.33685367,81664.0,81663.0,0.4882765]
[1742318351720,0.33085367,81664.0,81663.0,0.4882765]
[1742318351913,0.33085367,81664.0,81663.0,0.5486765]
[1742318352119,0.04,81677.0,81676.0,0.122457]
[1742318352415,0.01,81677.0,81676.0,0.488257]
[1742318352616,0.32695456,81677.0,81676.0,0.488257]
[1742318352814,0.122441,81687.0,81678.0,0.0612264]
[1742318353023,0.19382,81690.0,81688.0,0.1224375]
[1742318353231,0.0612084,81703.0,81689.0,0.3608]
[1742318353427,0.180318,81702.0,81701.0,0.3608]
[1742318353617,0.1224345,81691.0,81690.0,0.0583]
[1742318353817,0.122448,81682.0,81669.0,0.4220336]
[1742318354016,0.13616,81682.0,81662.0,0.3608]
[1742318354224,0.13616,81682.0,81655.0,1.25548]
[1742318354225,0.3608,81675.0,81651.0,0.0612471]
[1742318354418,0.0579,81674.0,81666.0,0.061236]
[1742318354619,0.0579,81674.0,81665.0,0.005]
[1742318354620,0.1362,81673.0,81665.0,0.005]
[1742318354819,0.004,81677.0,81673.0,0.1224615]
[1742318355022,0.122442,81687.0,81686.0,0.1274389]
[1742318355223,0.1163,81694.0,81686.0,0.005]
[1742318355529,0.00018365,81695.0,81694.0,0.12243]
[1742318355726,0.00018365,81695.0,81694.0,0.18023]
[1742318356035,0.00018365,81695.0,81694.0,0.24123]
[1742318356531,0.12261215,81695.0,81694.0,0.1168]
[1742318357038,0.00018365,81695.0,81694.0,0.23923]
[1742318357247,0.12261215,81695.0,81694.0,0.1168]
[1742318357428,0.12261215,81695.0,81694.0,0.23923]
[1742318357733,0.00018365,81695.0,81694.0,0.23923]
[1742318357927,0.00028454,81695.0,81694.0,0.23923]
[1742318358230,0.00028454,81695.0,81694.0,0.1168]
[1742318358231,0.12261215,81695.0,81694.0,0.1168]
[1742318358432,0.12261215,81695.0,81694.0,0.0558]
[1742318358826,0.1224345,81691.0,81690.0,0.3608]
[1742318359029,0.1224345,81691.0,81686.0,0.36098365]
[1742318359030,0.1224405,81687.0,81686.0,0.00018365]
[1742318361025,0.1224675,81669.0,81668.0,0.005]
[1742318361221,0.122478,81662.0,81655.0,0.0644]
[1742318361437,0.121478,81662.0,81658.0,0.005]
[1742318361636,0.121478,81662.0,81654.0,0.88952]
[1742318361826,0.1224885,81655.0,81654.0,0.88952]
[1742318362236,0.1224885,81655.0,81654.0,1.01201]
[1742318362531,0.122493,81652.0,81651.0,0.3608]
[1742318362733,0.0612455,81654.0,81646.0,0.00018365]
[1742318362734,0.1225005,81647.0,81646.0,0.00018365]
[1742318363131,0.1225005,81647.0,81646.0,0.01018365]
[1742318363324,0.1225005,81647.0,81646.0,0.00018365]
[1742318364021,0.2551805,81647.0,81646.0,0.00018365]
[1742318364425,0.2551805,81647.0,81631.0,0.0593]
[1742318364426,0.1225245,81631.0,81610.0,0.21827171]
[1742318364636,0.1225425,81619.0,81618.0,0.181844]
[1742318364836,0.1195425,81619.0,81618.0,0.186844]
[1742318365027,0.11964339,81619.0,81618.0,0.186844]
[1742318365233,0.1195425,81619.0,81618.0,0.186844]
[1742318365434,0.1225399,81621.0,81620.0,0.1225395]
[1742318366122,0.1225399,81621.0,81620.0,0.2456395]
[1742318366327,0.00018377,81629.0,81628.0,0.127529]
[1742318366740,0.00018377,81629.0,81628.0,0.263329]
[1742318367036,0.12271127,81629.0,81628.0,0.263329]
[1742318367734,0.12271127,81629.0,81628.0,0.1408]
[1742318368242,0.00018377,81629.0,81620.0,0.1231]
[1742318368536,0.1225335,81625.0,81624.0,0.005]
[1742318368735,0.1225335,81625.0,81624.0,0.127535]
[1742318369044,0.1174645,81628.0,81627.0,0.1225305]
[1742318369045,0.178729,81628.0,81627.0,0.1225305]
[1742318369341,0.122529,81628.0,81627.0,0.3608]
[1742318369738,0.00018377,81629.0,81628.0,0.122529]
[1742318369944,0.00018377,81629.0,81628.0,0.240029]
[1742318370725,0.13536,81651.0,81646.0,0.005]
[1742318370923,0.1225005,81647.0,81646.0,0.005]
[1742318371127,0.12260139,81647.0,81646.0,0.065]
[1742318371527,0.12260139,81647.0,81646.0,0.187502]
[1742318371733,0.061245,81654.0,81648.0,0.1224975]
[1742318371938,0.1224823,81660.0,81659.0,0.122481]
[1742318372438,0.1224823,81660.0,81659.0,0.059]
[1742318372643,0.00018377,81668.0,81665.0,0.1224715]
[1742318372939,0.1837094,81666.0,81665.0,0.1224715]
[1742318373141,0.1224765,81664.0,81663.0,0.1224757]
[1742318373438,0.06141837,81668.0,81667.0,0.1224705]
[1742318373639,0.00018377,81668.0,81667.0,0.1224705]
[1742318373828,0.27349086,81684.0,81676.0,0.005]
[1742318374031,0.29934555,81677.0,81676.0,0.623777]
[1742318374343,0.29934555,81677.0,81676.0,0.005]
[1742318374539,0.29934555,81677.0,81657.0,0.13572]
[1742318374540,0.1224765,81663.0,81662.0,0.005]
[1742318375043,0.1224765,81663.0,81662.0,0.127478]
[1742318375238,0.1224765,81663.0,81662.0,0.1252383]
[1742318375544,0.1224736,81665.0,81664.0,0.122472]
[1742318375737,0.00018365,81671.0,81670.0,0.122466]
[1742318375941,0.1224585,81677.0,81676.0,0.1274513]
[1742318376136,0.1224585,81677.0,81676.0,0.005]
[1742318376533,0.1224585,81677.0,81659.0,0.37014313]
[1742318376534,0.0612375,81664.0,81659.0,0.3608]
[1742318376732,0.122478,81662.0,81661.0,0.005]
[1742318377130,0.238078,81662.0,81661.0,0.005]
[1742318378040,0.23816699,81662.0,81661.0,0.005]
[1742318378229,0.238078,81662.0,81661.0,0.005]
[1742318378438,0.1166,81662.0,81658.0,0.00018377]
[1742318378733,0.1224825,81659.0,81658.0,0.00018377]
[1742318379228,0.1224825,81659.0,81658.0,0.12266777]
[1742318379429,0.1224825,81659.0,81658.0,0.18026777]
[1742318379642,0.1808785,81662.0,81661.0,0.1224795]
[1742318379841,0.001,81662.0,81661.0,0.1224795]
[1742318380137,0.12265075,81670.0,81661.0,0.1224795]
[1742318380138,0.1224684,81669.0,81668.0,0.1274675]
[1742318380342,0.1795684,81669.0,81668.0,0.3658]
[1742318381131,0.1224825,81659.0,81650.0,0.13656]
[1742318381338,0.1224785,81662.0,81661.0,0.0612386]
[1742318381534,0.003,81669.0,81668.0,0.122469]
[1742318381740,0.003,81669.0,81668.0,0.619869]
[1742318381948,0.3608,81676.0,81669.0,0.1224675]
[1742318382140,0.0612307,81673.0,81669.0,0.2397974]
[1742318382444,0.122466,81670.0,81669.0,0.2397974]
[1742318383429,0.0612315,81672.0,81671.0,0.1224645]
[1742318383744,0.1224573,81676.0,81675.0,0.122457]
[1742318383943,0.0612171,81692.0,81685.0,0.1224435]
[1742318384130,0.27348316,81694.0,81691.0,0.183648]
[1742318384445,0.21226806,81694.0,81693.0,0.4832315]
[1742318384641,0.1224113,81708.0,81693.0,0.49708]
[1742318384842,0.1836152,81708.0,81707.0,0.3608]
[1742318385034,0.1836152,81708.0,81707.0,0.4972]
[1742318385429,0.1836152,81708.0,81707.0,0.3608]
[1742318385645,0.1224135,81705.0,81704.0,0.0593]
[1742318386143,0.122421,81700.0,81699.0,0.00018365]
[1742318386347,0.12624918,81700.0,81699.0,0.05978365]
[1742318386544,0.122433,81692.0,81691.0,0.37011645]
[1742318386753,0.122433,81692.0,81691.0,0.3608]
[1742318386953,0.12626118,81692.0,81691.0,0.3608]
[1742318387543,0.0612231,81684.0,81677.0,0.3608]
[1742318387843,0.0612231,81684.0,81668.0,0.3608]
[1742318387844,0.1224645,81671.0,81670.0,1.02812]
[1742318388044,0.1224645,81671.0,81670.0,0.88956]
[1742318388644,0.2352645,81671.0,81670.0,0.82061926]
[1742318388839,0.122475,81664.0,81662.0,0.00018365]
[1742318389039,0.2352765,81663.0,81662.0,0.00018365]
[1742318389439,0.0612339,81669.0,81668.0,0.122469]
[1742318390236,0.00018365,81671.0,81668.0,0.0585]
[1742318390436,0.1224765,81663.0,81662.0,0.00018365]
[1742318391349,0.1785765,81663.0,81662.0,0.00018365]
[1742318391546,0.1785765,81663.0,81662.0,0.12466165]
[1742318391845,0.1837056,81670.0,81669.0,0.122466]
[1742318392049,0.122469,81668.0,81667.0,0.0612345]
[1742318392645,0.1224765,81663.0,81662.0,0.00118365]
[1742318394041,0.1224765,81663.0,81662.0,0.00018365]
[1742318394348,0.122493,81652.0,81651.0,1.02816]
[1742318394646,0.122493,81652.0,81651.0,0.88956]
[1742318395240,0.240393,81652.0,81651.0,0.88956]
[1742318395643,0.240393,81652.0,81651.0,0.89156]
[1742318397153,0.241393,81652.0,81651.0,0.88956]
[1742318397551,0.241393,81652.0,81651.0,1.0120545]
[1742318397755,0.241393,81652.0,81651.0,0.88956]
[1742318398150,0.241393,81652.0,81651.0,1.0120545]
[1742318398452,0.183093,81652.0,81651.0,1.0120545]
[1742318398658,0.13812,81663.0,81659.0,0.122481]
[1742318398659,0.1224817,81660.0,81659.0,0.122481]
[1742318399046,0.1790817,81660.0,81659.0,0.122481]
[1742318399241,0.0566,81660.0,81658.0,0.13812]
[1742318399541,0.1224825,81659.0,81658.0,0.260604]
[1742318399745,0.1224825,81659.0,81658.0,0.13812]
[1742318400149,0.1832825,81659.0,81658.0,0.13812]
[1742318400348,0.1224825,81659.0,81658.0,0.260604]
[1742318400648,0.1224825,81659.0,81658.0,0.13812]
[1742318400952,0.1224885,81655.0,81654.0,0.3608]
[1742318401152,0.1224885,81655.0,81654.0,0.62161]
[1742318401562,0.1224864,81657.0,81656.0,0.1837267]
[1742318401760,0.1224864,81657.0,81656.0,0.0612427]
[1742318401960,0.061242,81658.0,81654.0,0.49912]
[1742318401961,0.1224885,81655.0,81654.0,0.6216093]
[1742318402351,0.122493,81652.0,81651.0,0.88956]
[1742318402749,0.235793,81652.0,81651.0,0.88956]
[1742318403266,0.1224894,81657.0,81656.0,0.1224813]
[1742318404261,0.1224894,81657.0,81656.0,0.4832813]
[1742318404479,0.2449785,81657.0,81656.0,0.3608]
[1742318404764,0.2449785,81657.0,81656.0,0.3638]
[1742318405266,0.122487,81656.0,81655.0,0.0561]
[1742318405467,0.121487,81656.0,81655.0,0.0561]
[1742318406265,0.121487,81656.0,81655.0,0.1785885]
[1742318406764,0.0612412,81659.0,81658.0,0.1837222]
[1742318407063,0.0566,81661.0,81658.0,0.1837222]
[1742318407064,0.0566,81661.0,81660.0,0.122481]
[1742318407259,0.23711694,81669.0,81667.0,0.0612352]
[1742318407462,0.1224678,81669.0,81668.0,0.3608]
[1742318407861,0.1829678,81669.0,81668.0,0.3608]
[1742318408165,0.1829678,81669.0,81668.0,0.483269]
[1742318408364,0.00018365,81671.0,81670.0,0.122466]
[1742318408569,0.00018365,81671.0,81670.0,0.22819011]
[1742318408775,0.1224538,81679.0,81676.0,0.122457]
[1742318409075,0.37187802,81677.0,81676.0,1.012217]
[1742318409268,0.37187802,81677.0,81676.0,1.069117]
[1742318410167,0.37187802,81677.0,81676.0,1.206877]
[1742318410366,0.24942252,81677.0,81676.0,1.206877]
[1742318410565,0.28433093,81685.0,81679.0,0.0612257]
[1742318410566,0.31910973,81683.0,81679.0,0.0612257]
[1742318410771,0.44155623,81683.0,81682.0,0.483248]
[1742318411372,0.49915623,81683.0,81682.0,0.600448]
[1742318411774,0.31910973,81683.0,81682.0,0.600448]
[1742318412164,0.13035281,81697.0,81682.0,0.600448]
[1742318412165,0.25278091,81697.0,81696.0,0.122427]
[1742318412361,0.25278091,81697.0,81696.0,0.13748]
[1742318412671,0.31078091,81697.0,81696.0,0.13748]
[1742318412872,0.36668091,81697.0,81696.0,0.13748]
[1742318413374,0.36668091,81697.0,81696.0,0.26923401]
[1742318413576,0.39510336,81697.0,81696.0,0.49220727]
[1742318413778,0.39610336,81697.0,81696.0,0.49220727]
[1742318413969,0.26575055,81697.0,81696.0,0.60870727]
[1742318414168,0.27724512,81697.0,81696.0,0.60870727]
[1742318414562,0.27724512,81697.0,81696.0,0.4773]
[1742318414767,0.26575055,81697.0,81696.0,0.4773]
[1742318415573,0.26575055,81697.0,81696.0,0.3608]
[1742318415877,0.1224375,81689.0,81681.0,0.1154]
[1742318416075,0.1224375,81689.0,81680.0,0.4832501]
[1742318416076,0.15085995,81689.0,81680.0,0.4832501]
[1742318416271,0.26575995,81689.0,81683.0,0.00899433]
[1742318416571,0.26575995,81689.0,81686.0,0.1224409]
[1742318416775,0.26575995,81689.0,81683.0,0.00899433]
[1742318416776,0.27725452,81689.0,81685.0,0.122443]
[1742318416962,0.27825452,81689.0,81685.0,0.122443]
[1742318417163,0.27825452,81689.0,81680.0,0.3608]
[1742318417365,0.1224495,81681.0,81680.0,0.3608]
[1742318417675,0.122478,81662.0,81661.0,0.056]
[1742318417979,0.15090045,81662.0,81661.0,0.056]
[1742318418167,0.15090045,81662.0,81657.0,0.0578]
[1742318418168,0.122484,81658.0,81657.0,0.0578]
[1742318418369,0.183741,81653.0,81652.0,0.1224918]
[1742318418683,0.1125,81662.0,81652.0,0.1224918]
[1742318418684,0.22364152,81661.0,81660.0,0.122481]
[1742318418977,0.08966295,81661.0,81660.0,0.483281]
[1742318419178,0.02842245,81661.0,81660.0,0.483281]
[1742318419367,0.1224795,81661.0,81660.0,0.4832795]
[1742318419679,0.02842245,81664.0,81663.0,0.1224765]
[1742318419879,0.15089745,81664.0,81663.0,0.1224765]
[1742318420074,0.02842245,81664.0,81663.0,0.1224765]
[1742318420379,0.15089745,81664.0,81663.0,0.1224765]
[1742318420568,0.122475,81664.0,81663.0,0.1224765]
[1742318420764,0.1224743,81665.0,81664.0,0.1837109]
[1742318420965,0.01167822,81666.0,81665.0,0.1224735]
[1742318421372,0.0612322,81671.0,81665.0,0.1977565]
[1742318421675,0.122472,81666.0,81665.0,0.3202287]
[1742318421879,0.122475,81664.0,81663.0,0.002]
[1742318422177,0.122475,81664.0,81662.0,0.3608]
[1742318422178,0.1224765,81663.0,81662.0,0.3608]
[1742318422477,0.1224855,81657.0,81656.0,0.620047]
[1742318422671,0.1224768,81663.0,81662.0,0.122478]
[1742318422870,0.1224768,81663.0,81660.0,0.0612397]
[1742318422871,0.25299195,81667.0,81666.0,0.122472]
[1742318423071,0.37546245,81667.0,81666.0,0.619872]
[1742318423275,0.25299195,81667.0,81666.0,0.4974]
[1742318423467,0.25299195,81667.0,81666.0,0.619872]
[1742318424775,0.25299195,81667.0,81666.0,0.620872]
[1742318425180,0.25299195,81677.0,81671.0,0.1224645]
[1742318425371,0.25299195,81677.0,81671.0,0.4832645]
[1742318425883,0.28918601,81691.0,81671.0,0.5108]
[1742318426184,0.25279151,81690.0,81689.0,0.4832375]
[1742318426369,0.13035281,81690.0,81689.0,0.6195575]
[1742318427982,0.13535281,81690.0,81689.0,0.6195575]
[1742318428689,0.005,81690.0,81689.0,0.6195575]
[1742318429273,0.32528242,81695.0,81694.0,0.12243]
[1742318429590,0.02842245,81700.0,81698.0,0.122424]
[1742318429882,0.13035281,81706.0,81704.0,0.122415]
[1742318430089,0.13035281,81706.0,81704.0,0.483215]
[1742318430782,0.02842245,81714.0,81713.0,0.1224015]
[1742318430987,0.02842245,81714.0,81713.0,1.5085215]
[1742318431183,0.0586,81719.0,81713.0,1.5085215]
[1742318431184,0.0586,81719.0,81718.0,0.122394]
[1742318431384,0.0612021,81712.0,81704.0,0.37006073]
[1742318431681,0.122412,81706.0,81705.0,0.24500435]
[1742318431879,0.122412,81706.0,81705.0,0.12259385]
[1742318432384,0.122412,81706.0,81705.0,0.17164628]
[1742318432981,0.122412,81706.0,81705.0,0.30724628]
[1742318433183,0.1836007,81717.0,81716.0,0.0611973]
[1742318433379,0.2448007,81717.0,81716.0,0.0611973]
[1742318433576,0.0611948,81722.0,81715.0,0.1356]
[1742318433788,0.1835868,81722.0,81721.0,0.122388]
[1742318434085,0.1835868,81722.0,81721.0,0.258068]
[1742318434289,0.2436868,81722.0,81721.0,0.258068]
[1742318434498,0.2436868,81722.0,81721.0,0.316768]
[1742318434984,0.1223895,81721.0,81720.0,0.88932]
[1742318435176,0.1826895,81721.0,81720.0,0.88932]
[1742318435381,0.1826895,81721.0,81720.0,1.011711]
[1742318435382,0.2427895,81721.0,81720.0,1.011711]
[1742318436177,0.1204,81721.0,81720.0,1.011711]
[1742318436373,0.01148333,81742.0,81725.0,0.0611912]
[1742318436575,0.1223806,81727.0,81726.0,0.1163]
[1742318436772,0.1223985,81715.0,81714.0,0.3608]
[1742318436979,0.1223985,81715.0,81714.0,0.4832]
[1742318437987,0.1223985,81715.0,81714.0,0.4831985]
[1742318438285,0.1223985,81715.0,81714.0,0.4851985]
[1742318438488,0.1223985,81715.0,81714.0,0.6008985]
[1742318438676,0.2407985,81715.0,81714.0,0.4785]
[1742318438885,0.2407985,81715.0,81714.0,0.6009]
[1742318439191,0.2407985,81715.0,81714.0,0.4785]
[1742318439578,0.2407985,81715.0,81714.0,0.4214]
[1742318439791,0.2407985,81715.0,81714.0,0.5438]
[1742318440382,0.2407985,81715.0,81714.0,0.5428]
[1742318440891,0.2407985,81715.0,81714.0,0.4204]
[1742318441187,0.2407985,81715.0,81714.0,0.001]
[1742318441392,0.2407985,81715.0,81714.0,0.00010294]
[1742318441690,0.1224105,81707.0,81706.0,0.00018354]
[1742318441887,0.1214105,81707.0,81706.0,0.00018354]
[1742318442087,0.2402105,81707.0,81706.0,0.00018354]
[1742318442485,0.3008105,81707.0,81706.0,0.00018354]
[1742318443183,0.122424,81698.0,81697.0,0.4832255]
[1742318443586,0.1214,81698.0,81697.0,0.52428405]
[1742318443783,0.243824,81698.0,81697.0,0.64838405]
[1742318444294,0.1224184,81704.0,81703.0,0.1224165]
[1742318444496,0.07058333,81705.0,81704.0,0.122415]
[1742318444791,0.1815135,81705.0,81704.0,0.122415]
[1742318445187,0.1224165,81703.0,81702.0,0.0612089]
[1742318445393,0.1224165,81703.0,81699.0,0.4220109]
[1742318445394,0.122421,81700.0,81699.0,0.4220106]
[1742318445579,0.16426236,81700.0,81699.0,0.49876]
[1742318445781,0.04184136,81700.0,81699.0,0.6211825]
[1742318445990,0.03035803,81700.0,81699.0,0.6211825]
[1742318446177,0.15277903,81700.0,81699.0,0.6211825]
[1742318446377,0.122421,81700.0,81699.0,0.6211825]
[1742318446583,0.122421,81700.0,81699.0,0.49876]
[1742318446883,0.239521,81700.0,81699.0,0.3608]
[1742318447290,0.239521,81700.0,81699.0,0.3658]
[1742318448189,0.26987903,81700.0,81699.0,0.3618]
[1742318448879,0.26987903,81700.0,81699.0,0.4842225]
[1742318449082,0.239521,81700.0,81699.0,0.3618]
[1742318450484,0.239521,81700.0,81699.0,0.3608]
[1742318450886,0.239521,81700.0,81697.0,0.05017712]
[1742318450887,0.122424,81698.0,81697.0,0.05017712]
[1742318451192,0.1224345,81691.0,81690.0,0.8892]
[1742318451498,0.1224345,81691.0,81690.0,0.82027769]
[1742318451499,0.1214345,81691.0,81690.0,0.82027769]
[1742318451683,0.122469,81668.0,81666.0,0.8892]
[1742318451998,0.122469,81668.0,81667.0,0.36998108]
[1742318452499,0.246269,81668.0,81667.0,0.53493885]
[1742318453198,0.245269,81668.0,81667.0,0.53493885]
[1742318453390,0.0606,81668.0,81667.0,0.53493885]
[1742318453995,0.183069,81668.0,81667.0,0.53493885]
[1742318454293,0.183069,81668.0,81667.0,0.54918835]
[1742318454498,0.245869,81668.0,81667.0,0.54918835]
[1742318454799,0.245869,81668.0,81667.0,0.41246835]
[1742318455401,0.245869,81668.0,81667.0,0.40328727]
[1742318455899,0.122481,81660.0,81659.0,0.00018367]
[1742318456288,0.239681,81660.0,81659.0,0.00018367]
[1742318457095,0.239681,81660.0,81659.0,0.00218367]
[1742318457289,0.302381,81660.0,81659.0,0.00218367]
[1742318459591,0.239681,81660.0,81659.0,0.00218367]
[1742318459800,0.239681,81660.0,81659.0,0.12466617]
[1742318460592,0.120481,81660.0,81659.0,0.12466617]
[1742318460796,0.13594367,81676.0,81659.0,0.12466617]
[1742318460797,0.13594367,81676.0,81659.0,0.12432447]
[1742318461104,0.122481,81660.0,81659.0,0.18556417]
[1742318461403,0.122481,81660.0,81659.0,0.12218367]
[1742318461590,0.242981,81660.0,81659.0,0.12218367]
[1742318461792,0.242981,81660.0,81659.0,0.24466617]
[1742318461990,0.183981,81660.0,81659.0,0.24466617]
[1742318462191,0.0612396,81662.0,81661.0,0.1224795]
[1742318462403,0.0612396,81662.0,81661.0,0.2408795]
[1742318462995,0.1224756,81664.0,81663.0,0.1224765]
[1742318463197,0.1224756,81664.0,81663.0,0.4832765]